[Event "*** Titled Tuesday Blitz"]
[Site "Chess.com"]
[Date "2018.08.07"]
[Round "4"]
[White "dinesh501"]
[Black "m3alam"]
[Result "0-1"]
[WhiteElo "2293"]
[BlackElo "2185"]
[TimeControl "180+2"]
[EndTime "13:47:42 PDT"]
[Termination "m3alam won on time"]

1. e4 {[%clk 0:03:01.9]} 1... c6 {[%clk 0:02:52.9]} 2. d4 {[%clk 0:03:00]} 2...
d5 {[%clk 0:02:54.3]} 3. e5 {[%clk 0:02:56.3]} 3... Bf5 {[%clk 0:02:54.5]} 4.
Nf3 {[%clk 0:02:56.6]} 4... e6 {[%clk 0:02:55]} 5. Be2 {[%clk 0:02:57.8]} 5...
Ne7 {[%clk 0:02:51.6]} 6. O-O {[%clk 0:02:57]} 6... h6 {[%clk 0:02:51.1]} 7.
Nbd2 {[%clk 0:02:57.9]} 7... Nd7 {[%clk 0:02:51.1]} 8. Nb3 {[%clk 0:02:59.8]}
8... g5 {[%clk 0:02:47.2]} 9. Bd2 {[%clk 0:02:59.5]} 9... a5 {[%clk 0:02:42.5]}
10. a4 {[%clk 0:02:58.6]} 10... Bg7 {[%clk 0:02:36.8]} 11. Rc1 {[%clk
0:02:56.4]} 11... O-O {[%clk 0:02:32.1]} 12. h3 {[%clk 0:02:46.3]} 12... Qc7
{[%clk 0:02:24.6]} 13. Qe1 {[%clk 0:02:33.1]} 13... c5 {[%clk 0:02:12.5]} 14.
dxc5 {[%clk 0:02:27.7]} 14... Nxc5 {[%clk 0:02:07]} 15. Bxa5 {[%clk 0:02:26.7]}
15... b6 {[%clk 0:02:06.5]} 16. Bb4 {[%clk 0:02:14.2]} 16... Rxa4 {[%clk
0:02:01]} 17. Bb5 {[%clk 0:02:14.6]} 17... Ra2 {[%clk 0:01:57]} 18. Nbd4 {[%clk
0:02:11.2]} 18... Be4 {[%clk 0:01:44.9]} 19. b3 {[%clk 0:02:06.7]} 19... Ng6
{[%clk 0:01:38]} 20. Nd2 {[%clk 0:02:00.4]} 20... Bxe5 {[%clk 0:01:26.4]} 21.
Nxe4 {[%clk 0:01:58.5]} 21... Nxe4 {[%clk 0:01:19.4]} 22. Bxf8 {[%clk
0:01:54.5]} 22... Bxd4 {[%clk 0:01:13.6]} 23. Bb4 {[%clk 0:01:53.3]} 23... Nh4
{[%clk 0:01:08.7]} 24. Kh1 {[%clk 0:01:44.6]} 24... Qf4 {[%clk 0:01:05.5]} 25.
Qe2 {[%clk 0:01:33]} 25... Bxf2 {[%clk 0:01:02.1]} 26. Rxf2 {[%clk 0:01:33.2]}
26... Nxf2+ {[%clk 0:00:56.2]} 27. Kg1 {[%clk 0:01:28.5]} 27... Nxh3+ {[%clk
0:00:56.4]} 28. gxh3 {[%clk 0:01:22]} 28... Qxc1+ {[%clk 0:00:55.8]} 0-1

[Event "*** Titled Tuesday Blitz"]
[Site "Chess.com"]
[Date "2018.08.07"]
[Round "4"]
[White "NormWeinstein"]
[Black "juniortay"]
[Result "0-1"]
[WhiteElo "2389"]
[BlackElo "2417"]
[TimeControl "180+2"]
[EndTime "13:47:46 PDT"]
[Termination "juniortay won by resignation"]

1. e4 {[%clk 0:03:01.9]} 1... e5 {[%clk 0:03:00.6]} 2. Nf3 {[%clk 0:03:02.3]}
2... Nf6 {[%clk 0:03:02.2]} 3. Nc3 {[%clk 0:02:59.6]} 3... Nc6 {[%clk
0:03:02.4]} 4. g3 {[%clk 0:03:00]} 4... Nxe4 {[%clk 0:03:02.1]} 5. Nxe4 {[%clk
0:02:59.6]} 5... d5 {[%clk 0:03:03.3]} 6. Nc3 {[%clk 0:02:59.9]} 6... d4 {[%clk
0:03:02.4]} 7. Bg2 {[%clk 0:02:58]} 7... dxc3 {[%clk 0:03:02.5]} 8. bxc3 {[%clk
0:02:58.7]} 8... Bd6 {[%clk 0:03:03.8]} 9. O-O {[%clk 0:02:58.4]} 9... O-O
{[%clk 0:03:04.8]} 10. d3 {[%clk 0:02:59.2]} 10... Bg4 {[%clk 0:03:05.1]} 11. h3
{[%clk 0:02:59.5]} 11... Bh5 {[%clk 0:03:05.7]} 12. Rb1 {[%clk 0:02:59.1]} 12...
Rb8 {[%clk 0:03:04.6]} 13. g4 {[%clk 0:02:40.6]} 13... Bg6 {[%clk 0:03:03.9]}
14. Nd2 {[%clk 0:02:42]} 14... f5 {[%clk 0:02:46.6]} 15. gxf5 {[%clk 0:02:30.4]}
15... Bxf5 {[%clk 0:02:46.5]} 16. Ne4 {[%clk 0:02:21.4]} 16... h6 {[%clk
0:02:37.1]} 17. Qf3 {[%clk 0:02:20.6]} 17... Qd7 {[%clk 0:02:30.6]} 18. Qg3
{[%clk 0:02:18.4]} 18... Kh8 {[%clk 0:02:23.7]} 19. Be3 {[%clk 0:02:12.1]} 19...
b6 {[%clk 0:02:20.3]} 20. Qh4 {[%clk 0:01:59.3]} 20... Ne7 {[%clk 0:02:14.7]}
21. Kh1 {[%clk 0:01:30.2]} 21... Ng6 {[%clk 0:02:11.3]} 22. Qh5 {[%clk
0:01:29.9]} 22... Nf4 {[%clk 0:02:10.3]} 23. Bxf4 {[%clk 0:01:29.6]} 23... exf4
{[%clk 0:02:10.4]} 24. Rbe1 {[%clk 0:01:22.9]} 24... Rbe8 {[%clk 0:01:51.7]} 25.
Nxd6 {[%clk 0:01:10.7]} 25... cxd6 {[%clk 0:01:52.3]} 26. Qf3 {[%clk 0:00:58]}
26... g5 {[%clk 0:01:47.1]} 27. Kh2 {[%clk 0:00:56.2]} 27... Rg8 {[%clk
0:01:40.8]} 28. Qd5 {[%clk 0:00:55.2]} 28... Ref8 {[%clk 0:01:30.5]} 29. Qd4+
{[%clk 0:00:52.6]} 29... Kh7 {[%clk 0:01:28]} 30. Be4 {[%clk 0:00:51.4]} 30...
Rg7 {[%clk 0:01:24.8]} 31. Bxf5+ {[%clk 0:00:48.3]} 31... Rxf5 {[%clk
0:01:19.8]} 32. Re2 {[%clk 0:00:42.6]} 32... f3 {[%clk 0:01:14]} 33. Re4 {[%clk
0:00:43.3]} 33... d5 {[%clk 0:01:13.9]} 34. Re3 {[%clk 0:00:33.7]} 34... Qd6+
{[%clk 0:01:13.8]} 35. Kh1 {[%clk 0:00:34.5]} 35... g4 {[%clk 0:01:03.4]} 36.
hxg4 {[%clk 0:00:29.1]} 36... Qg6 {[%clk 0:00:48.5]} 37. Rg1 {[%clk 0:00:27]}
37... Rh5+ {[%clk 0:00:46.7]} 0-1

[Event "*** Titled Tuesday Blitz"]
[Site "Chess.com"]
[Date "2018.08.07"]
[Round "4"]
[White "Aikiigm"]
[Black "Zhuu96"]
[Result "0-1"]
[WhiteElo "2508"]
[BlackElo "2830"]
[TimeControl "180+2"]
[EndTime "13:47:56 PDT"]
[Termination "Zhuu96 won by checkmate"]

1. c4 {[%clk 0:01:28.6]} 1... Nf6 {[%clk 0:02:57.8]} 2. Nf3 {[%clk 0:01:29.6]}
2... e6 {[%clk 0:02:56.9]} 3. g3 {[%clk 0:01:31.5]} 3... d5 {[%clk 0:02:56.4]}
4. Bg2 {[%clk 0:01:33.4]} 4... Be7 {[%clk 0:02:57.7]} 5. O-O {[%clk 0:01:33]}
5... O-O {[%clk 0:02:58.9]} 6. b3 {[%clk 0:01:34]} 6... c5 {[%clk 0:02:57.8]} 7.
Bb2 {[%clk 0:01:35]} 7... d4 {[%clk 0:02:57.9]} 8. e3 {[%clk 0:01:36]} 8... Nc6
{[%clk 0:02:55.4]} 9. exd4 {[%clk 0:01:36.8]} 9... cxd4 {[%clk 0:02:56.5]} 10.
d3 {[%clk 0:01:38]} 10... e5 {[%clk 0:02:57.6]} 11. Re1 {[%clk 0:01:35.7]} 11...
Nd7 {[%clk 0:02:58.5]} 12. Na3 {[%clk 0:01:35.4]} 12... f6 {[%clk 0:02:55.6]}
13. Nc2 {[%clk 0:01:36.4]} 13... a5 {[%clk 0:02:56]} 14. Na3 {[%clk 0:01:35]}
14... Nc5 {[%clk 0:02:55.1]} 15. Nc2 {[%clk 0:01:32.9]} 15... Bf5 {[%clk
0:02:55.1]} 16. Bf1 {[%clk 0:01:34]} 16... Qd7 {[%clk 0:02:55.4]} 17. Nh4 {[%clk
0:01:32.3]} 17... Bg4 {[%clk 0:02:56.3]} 18. Qd2 {[%clk 0:01:31.2]} 18... g5
{[%clk 0:02:50.2]} 19. Ng2 {[%clk 0:01:31.3]} 19... Bf3 {[%clk 0:02:34.9]} 20.
Rab1 {[%clk 0:01:29.9]} 20... Qf5 {[%clk 0:02:34.1]} 21. Bc1 {[%clk 0:01:25]}
21... h5 {[%clk 0:02:30.3]} 22. a3 {[%clk 0:01:25.7]} 22... h4 {[%clk
0:02:30.2]} 23. b4 {[%clk 0:01:25.5]} 23... axb4 {[%clk 0:02:21.5]} 24. axb4
{[%clk 0:01:27.3]} 24... Ne6 {[%clk 0:02:21.9]} 25. b5 {[%clk 0:01:26.6]} 25...
Ncd8 {[%clk 0:02:22.7]} 26. Re2 {[%clk 0:01:09.3]} 26... hxg3 {[%clk 0:02:10.4]}
27. fxg3 {[%clk 0:01:07.6]} 27... Bxe2 {[%clk 0:02:09.7]} 28. Bxe2 {[%clk
0:01:08.4]} 28... g4 {[%clk 0:02:07.2]} 29. Nh4 {[%clk 0:01:06.7]} 29... Qh5
{[%clk 0:02:07.8]} 30. Qh6 {[%clk 0:01:06.1]} 30... Qxh6 {[%clk 0:02:04.6]} 31.
Bxh6 {[%clk 0:01:07.9]} 31... Rf7 {[%clk 0:02:05.9]} 32. Bxg4 {[%clk 0:01:08.8]}
32... Nc5 {[%clk 0:02:05.8]} 33. Ne1 {[%clk 0:01:06.1]} 33... e4 {[%clk
0:02:00.6]} 34. dxe4 {[%clk 0:01:02.6]} 34... Nxe4 {[%clk 0:02:01.8]} 35. Nd3
{[%clk 0:01:03.3]} 35... Ra3 {[%clk 0:01:58.6]} 36. Nf4 {[%clk 0:01:01.2]} 36...
d3 {[%clk 0:01:59.7]} 37. Bf5 {[%clk 0:00:58.6]} 37... Bc5+ {[%clk 0:02:00.8]}
38. Kg2 {[%clk 0:00:58.1]} 38... Ra2+ {[%clk 0:02:01.8]} 39. Kf3 {[%clk
0:00:58]} 39... Nd2+ {[%clk 0:02:02.9]} 40. Kg4 {[%clk 0:00:57.7]} 40... Nxb1
{[%clk 0:02:04.1]} 41. Bxd3 {[%clk 0:00:58.7]} 41... Nd2 {[%clk 0:02:02.8]} 42.
Nd5 {[%clk 0:00:57.5]} 42... Ra4 {[%clk 0:01:52.1]} 43. Bxd2 {[%clk 0:00:51.9]}
43... Ne6 {[%clk 0:01:48.5]} 44. Nf5 {[%clk 0:00:49.7]} 44... Kf8 {[%clk
0:01:41]} 45. Nh6 {[%clk 0:00:47.5]} 45... Rg7+ {[%clk 0:01:39.4]} 46. Kf5
{[%clk 0:00:38.4]} 46... Ra2 {[%clk 0:01:40.3]} 47. Kxe6 {[%clk 0:00:22.6]}
47... Rxd2 {[%clk 0:01:40.5]} 48. Bf5 {[%clk 0:00:22.7]} 48... Re2+ {[%clk
0:01:38.3]} 49. Kxf6 {[%clk 0:00:22.3]} 49... Bd4# {[%clk 0:01:38.8]} 0-1

[Event "*** Titled Tuesday Blitz"]
[Site "Chess.com"]
[Date "2018.08.07"]
[Round "4"]
[White "LittlePeasant"]
[Black "Alopekos"]
[Result "1-0"]
[WhiteElo "2777"]
[BlackElo "2474"]
[TimeControl "180+2"]
[EndTime "13:48:11 PDT"]
[Termination "LittlePeasant won by resignation"]

1. Nf3 {[%clk 0:03:01.9]} 1... Nf6 {[%clk 0:03:00.7]} 2. c4 {[%clk 0:03:03.1]}
2... e6 {[%clk 0:03:01.2]} 3. g3 {[%clk 0:03:03.8]} 3... d5 {[%clk 0:03:02.4]}
4. Bg2 {[%clk 0:03:04.9]} 4... Be7 {[%clk 0:03:03.9]} 5. b3 {[%clk 0:03:06]}
5... a5 {[%clk 0:02:59.3]} 6. Nc3 {[%clk 0:03:05.3]} 6... d4 {[%clk 0:02:51.6]}
7. Nb5 {[%clk 0:03:05.9]} 7... Nc6 {[%clk 0:02:52.6]} 8. O-O {[%clk 0:02:59.5]}
8... e5 {[%clk 0:02:51.7]} 9. e3 {[%clk 0:03:00.5]} 9... O-O {[%clk 0:02:43.3]}
10. Bb2 {[%clk 0:02:47.5]} 10... Bc5 {[%clk 0:02:10.3]} 11. exd4 {[%clk
0:02:36.1]} 11... exd4 {[%clk 0:02:12.2]} 12. d3 {[%clk 0:02:37.2]} 12... Re8
{[%clk 0:02:12]} 13. Re1 {[%clk 0:02:36.8]} 13... Rxe1+ {[%clk 0:02:08.6]} 14.
Qxe1 {[%clk 0:02:37.5]} 14... Nb4 {[%clk 0:01:26.3]} 15. Qd2 {[%clk 0:02:33.9]}
15... Bg4 {[%clk 0:00:37.3]} 16. a3 {[%clk 0:01:48.3]} 16... Nc6 {[%clk
0:00:27]} 17. Re1 {[%clk 0:01:47.4]} 17... Qd7 {[%clk 0:00:17.9]} 18. Ne5 {[%clk
0:01:46.7]} 18... Nxe5 {[%clk 0:00:16.1]} 19. Rxe5 {[%clk 0:01:48.6]} 19... Bb6
{[%clk 0:00:05.9]} 20. Bxb7 {[%clk 0:01:37.1]} 20... Re8 {[%clk 0:00:07]} 21.
Rxe8+ {[%clk 0:01:33.1]} 21... Qxe8 {[%clk 0:00:07.9]} 22. Bxd4 {[%clk
0:01:29.3]} 22... Bxd4 {[%clk 0:00:03.5]} 23. Nxd4 {[%clk 0:01:30]} 23... c5
{[%clk 0:00:03.6]} 24. Nb5 {[%clk 0:01:26.5]} 24... Qe5 {[%clk 0:00:04.3]} 25.
Qe3 {[%clk 0:01:11.9]} 25... Qa1+ {[%clk 0:00:03.7]} 26. Kg2 {[%clk 0:01:13.4]}
26... h5 {[%clk 0:00:02.9]} 27. h3 {[%clk 0:01:11.6]} 27... Bxh3+ {[%clk
0:00:03.6]} 28. Kxh3 {[%clk 0:01:08.9]} 28... Ng4 {[%clk 0:00:03]} 29. Qe8+
{[%clk 0:01:07.8]} 29... Kh7 {[%clk 0:00:04]} 30. Kg2 {[%clk 0:01:03.8]} 30...
Qf6 {[%clk 0:00:03.1]} 31. Qe4+ {[%clk 0:01:03.2]} 31... g6 {[%clk 0:00:03.9]}
32. Qf3 {[%clk 0:01:04.6]} 32... Qe7 {[%clk 0:00:02.4]} 33. Bd5 {[%clk
0:01:03.7]} 33... Kg7 {[%clk 0:00:03.7]} 34. d4 {[%clk 0:00:58.1]} 34... cxd4
{[%clk 0:00:04.1]} 35. Nxd4 {[%clk 0:00:58.7]} 35... Nf6 {[%clk 0:00:05.4]} 36.
Ne2 {[%clk 0:00:51.7]} 36... Qxa3 {[%clk 0:00:06]} 37. Qc3 {[%clk 0:00:49.9]}
37... Qc5 {[%clk 0:00:03.2]} 38. Nf4 {[%clk 0:00:50.3]} 38... h4 {[%clk
0:00:03.2]} 39. gxh4 {[%clk 0:00:47.2]} 1-0

[Event "*** Titled Tuesday Blitz"]
[Site "Chess.com"]
[Date "2018.08.07"]
[Round "4"]
[White "nOcHeaTiNgKiD"]
[Black "vpantev"]
[Result "1/2-1/2"]
[WhiteElo "2394"]
[BlackElo "2521"]
[TimeControl "180+2"]
[EndTime "13:48:14 PDT"]
[Termination "Game drawn by repetition"]

1. Nf3 {[%clk 0:03:01.9]} 1... Nf6 {[%clk 0:02:57.3]} 2. c4 {[%clk 0:03:01.9]}
2... e6 {[%clk 0:02:58]} 3. g3 {[%clk 0:03:02]} 3... b6 {[%clk 0:02:57.6]} 4.
Bg2 {[%clk 0:03:03]} 4... Bb7 {[%clk 0:02:58.9]} 5. O-O {[%clk 0:03:04.2]} 5...
Be7 {[%clk 0:02:59.2]} 6. Nc3 {[%clk 0:03:04.5]} 6... O-O {[%clk 0:02:59.1]} 7.
d4 {[%clk 0:03:05.4]} 7... Ne4 {[%clk 0:02:59.8]} 8. Bd2 {[%clk 0:03:02.4]} 8...
Nxc3 {[%clk 0:02:59.6]} 9. Bxc3 {[%clk 0:03:02.3]} 9... d6 {[%clk 0:03:01]} 10.
Qc2 {[%clk 0:02:54.7]} 10... f5 {[%clk 0:02:54.9]} 11. d5 {[%clk 0:02:48.3]}
11... e5 {[%clk 0:02:54.1]} 12. e4 {[%clk 0:02:47.3]} 12... f4 {[%clk
0:02:47.7]} 13. gxf4 {[%clk 0:02:44.5]} 13... Rxf4 {[%clk 0:02:47.6]} 14. Ne1
{[%clk 0:02:42.2]} 14... Bg5 {[%clk 0:02:44]} 15. Nd3 {[%clk 0:02:40.8]} 15...
Rf8 {[%clk 0:02:41.6]} 16. Bd2 {[%clk 0:02:16.1]} 16... Nd7 {[%clk 0:02:38.3]}
17. Qc1 {[%clk 0:02:13.7]} 17... Bxd2 {[%clk 0:02:37.6]} 18. Qxd2 {[%clk
0:02:14.3]} 18... Nc5 {[%clk 0:02:37.5]} 19. Nxc5 {[%clk 0:02:12.6]} 19... bxc5
{[%clk 0:02:38.3]} 20. f4 {[%clk 0:02:13.4]} 20... exf4 {[%clk 0:02:39.3]} 21.
Rxf4 {[%clk 0:02:12.7]} 21... Rxf4 {[%clk 0:02:40.3]} 22. Qxf4 {[%clk
0:02:13.3]} 22... Qe7 {[%clk 0:02:41.5]} 23. Rf1 {[%clk 0:02:13.2]} 23... Rf8
{[%clk 0:02:41.4]} 24. Qxf8+ {[%clk 0:02:13.5]} 24... Qxf8 {[%clk 0:02:42.5]}
25. Rxf8+ {[%clk 0:02:15.4]} 25... Kxf8 {[%clk 0:02:43.7]} 26. Bh3 {[%clk
0:01:59]} 26... Ke7 {[%clk 0:02:44]} 27. Kf2 {[%clk 0:02:00]} 27... Kf6 {[%clk
0:02:44.9]} 28. Ke3 {[%clk 0:01:58.7]} 28... Ke5 {[%clk 0:02:45.9]} 29. Bd7
{[%clk 0:01:55.4]} 29... a5 {[%clk 0:02:42]} 30. b3 {[%clk 0:01:53.4]} 30... g5
{[%clk 0:02:27.3]} 31. h3 {[%clk 0:01:23.2]} 31... h6 {[%clk 0:02:01.7]} 32. a3
{[%clk 0:01:19.7]} 32... Ba6 {[%clk 0:02:01.2]} 33. a4 {[%clk 0:01:14.1]} 33...
Bb7 {[%clk 0:02:00.8]} 34. Bf5 {[%clk 0:01:10]} 34... c6 {[%clk 0:01:59.6]} 35.
Bd7 {[%clk 0:01:02.6]} 35... cxd5 {[%clk 0:02:00.4]} 36. exd5 {[%clk 0:01:03.8]}
36... h5 {[%clk 0:01:52]} 37. Be6 {[%clk 0:00:57.9]} 37... Kf6 {[%clk
0:01:47.9]} 38. Bd7 {[%clk 0:00:55]} 38... Ke7 {[%clk 0:01:47.6]} 39. Be6 {[%clk
0:00:53.1]} 39... Kf6 {[%clk 0:01:48.5]} 40. Bd7 {[%clk 0:00:53.8]} 40... Ba6
{[%clk 0:01:48.4]} 41. Be6 {[%clk 0:00:52.6]} 41... Ke7 {[%clk 0:01:44.8]} 42.
Ke4 {[%clk 0:00:50.7]} 42... Kf6 {[%clk 0:01:44]} 43. Bd7 {[%clk 0:00:50.7]}
43... Bb7 {[%clk 0:01:44.7]} 44. Be6 {[%clk 0:00:51]} 44... Kg6 {[%clk
0:01:31.2]} 45. Bf5+ {[%clk 0:00:49.4]} 45... Kf6 {[%clk 0:01:32.2]} 46. Be6
{[%clk 0:00:50.4]} 46... Ba6 {[%clk 0:01:31.9]} 47. Bd7 {[%clk 0:00:50.1]} 47...
Ke7 {[%clk 0:01:32.9]} 48. Be6 {[%clk 0:00:50]} 48... Kf6 {[%clk 0:01:30.3]} 49.
Bd7 {[%clk 0:00:50.8]} 49... Bb7 {[%clk 0:01:29.1]} 50. Be6 {[%clk 0:00:51.5]}
50... Kg6 {[%clk 0:01:30.3]} 51. Bf5+ {[%clk 0:00:49.6]} 51... Kg7 {[%clk
0:01:31.2]} 52. Be6 {[%clk 0:00:50.3]} 52... Kf6 {[%clk 0:01:32.4]} 53. Bd7
{[%clk 0:00:51.2]} 53... Ke7 {[%clk 0:01:32.3]} 54. Be6 {[%clk 0:00:52]} 54...
Kf6 {[%clk 0:01:28.1]} 55. Bd7 {[%clk 0:00:51.1]} 55... Ke7 {[%clk 0:01:28]} 56.
Be6 {[%clk 0:00:52.1]} 56... Kf6 {[%clk 0:01:28.7]} 57. Bd7 {[%clk 0:00:53.1]}
1/2-1/2

[Event "*** Titled Tuesday Blitz"]
[Site "Chess.com"]
[Date "2018.08.07"]
[Round "4"]
[White "Litti"]
[Black "BasilSmash"]
[Result "0-1"]
[WhiteElo "2468"]
[BlackElo "2464"]
[TimeControl "180+2"]
[EndTime "13:48:22 PDT"]
[Termination "BasilSmash won by checkmate"]

1. e4 {[%clk 0:02:59.6]} 1... c6 {[%clk 0:03:01]} 2. d4 {[%clk 0:03:00.1]} 2...
d5 {[%clk 0:03:02.9]} 3. Nd2 {[%clk 0:03:00.3]} 3... dxe4 {[%clk 0:03:03.6]} 4.
Nxe4 {[%clk 0:03:02.2]} 4... Bf5 {[%clk 0:03:04.8]} 5. Ng3 {[%clk 0:03:02.7]}
5... Bg6 {[%clk 0:03:06]} 6. h4 {[%clk 0:03:03.3]} 6... h6 {[%clk 0:03:06.8]} 7.
Nh3 {[%clk 0:03:03.8]} 7... e6 {[%clk 0:03:05.1]} 8. Nf4 {[%clk 0:03:04.6]} 8...
Bh7 {[%clk 0:03:06.3]} 9. Bc4 {[%clk 0:03:04.8]} 9... Nf6 {[%clk 0:03:06.1]} 10.
O-O {[%clk 0:03:05.8]} 10... Bd6 {[%clk 0:03:06.6]} 11. Re1 {[%clk 0:03:03.4]}
11... O-O {[%clk 0:03:06.8]} 12. c3 {[%clk 0:03:04.2]} 12... Re8 {[%clk
0:03:03.7]} 13. Qf3 {[%clk 0:03:02.8]} 13... Nbd7 {[%clk 0:03:03.2]} 14. Bd2
{[%clk 0:02:59.1]} 14... Qc7 {[%clk 0:03:03.3]} 15. Rad1 {[%clk 0:02:55.1]}
15... e5 {[%clk 0:02:56.5]} 16. Nfh5 {[%clk 0:02:28.8]} 16... e4 {[%clk
0:02:43.9]} 17. Qe3 {[%clk 0:02:16]} 17... b5 {[%clk 0:02:26.2]} 18. Bb3 {[%clk
0:02:13.7]} 18... a5 {[%clk 0:02:15.2]} 19. a3 {[%clk 0:01:21.9]} 19... a4
{[%clk 0:02:11.2]} 20. Ba2 {[%clk 0:01:22.2]} 20... Nd5 {[%clk 0:01:50.5]} 21.
Qe2 {[%clk 0:01:13.5]} 21... f5 {[%clk 0:01:34.9]} 22. c4 {[%clk 0:00:43.9]}
22... bxc4 {[%clk 0:01:36.8]} 23. Bxc4 {[%clk 0:00:42.6]} 23... Nb6 {[%clk
0:00:59.8]} 24. Ba2 {[%clk 0:00:41]} 24... f4 {[%clk 0:00:57.6]} 25. Nxg7 {[%clk
0:00:15.3]} 25... Kxg7 {[%clk 0:00:47.1]} 26. Qg4+ {[%clk 0:00:15.5]} 26... Kh8
{[%clk 0:00:45.7]} 27. Nh5 {[%clk 0:00:13.8]} 27... Rg8 {[%clk 0:00:43.1]} 28.
Qe6 {[%clk 0:00:13.5]} 28... f3 {[%clk 0:00:26.9]} 29. Bxh6 {[%clk 0:00:10.1]}
29... Rxg2+ {[%clk 0:00:23.2]} 30. Kf1 {[%clk 0:00:11.2]} 30... Rag8 {[%clk
0:00:19.7]} 31. Bg7+ {[%clk 0:00:11.3]} 31... R2xg7 {[%clk 0:00:18.5]} 32. Nxg7
{[%clk 0:00:12]} 32... Qxg7 {[%clk 0:00:19.3]} 33. Re3 {[%clk 0:00:11.4]} 33...
Qg1# {[%clk 0:00:19.2]} 0-1

[Event "*** Titled Tuesday Blitz"]
[Site "Chess.com"]
[Date "2018.08.07"]
[Round "4"]
[White "xberli"]
[Black "champ2005"]
[Result "1-0"]
[WhiteElo "2473"]
[BlackElo "2700"]
[TimeControl "180+2"]
[EndTime "13:48:23 PDT"]
[Termination "xberli won by resignation"]

1. e4 {[%clk 0:03:01.9]} 1... c6 {[%clk 0:03:00.5]} 2. d4 {[%clk 0:02:58.7]}
2... d5 {[%clk 0:03:02]} 3. e5 {[%clk 0:03:00]} 3... Bf5 {[%clk 0:03:02.3]} 4.
Nf3 {[%clk 0:03:00.8]} 4... e6 {[%clk 0:03:03.4]} 5. Be2 {[%clk 0:03:01.9]} 5...
Ne7 {[%clk 0:03:04.4]} 6. O-O {[%clk 0:03:02]} 6... Ng6 {[%clk 0:03:05.2]} 7.
Be3 {[%clk 0:02:55.3]} 7... Nd7 {[%clk 0:03:04.1]} 8. Nbd2 {[%clk 0:02:54.9]}
8... f6 {[%clk 0:03:05.2]} 9. exf6 {[%clk 0:02:02.9]} 9... Qxf6 {[%clk
0:03:05.3]} 10. c4 {[%clk 0:01:59.8]} 10... Bd6 {[%clk 0:03:05.3]} 11. Qb3
{[%clk 0:01:59]} 11... Rb8 {[%clk 0:03:02.9]} 12. Rfe1 {[%clk 0:01:55.9]} 12...
O-O {[%clk 0:03:02.3]} 13. Bg5 {[%clk 0:01:31.1]} 13... Qf7 {[%clk 0:03:02.7]}
14. Nf1 {[%clk 0:01:28.7]} 14... h6 {[%clk 0:03:01.5]} 15. Bd2 {[%clk 0:01:25]}
15... Nf4 {[%clk 0:02:54.7]} 16. Ng3 {[%clk 0:01:23.1]} 16... Nxe2+ {[%clk
0:02:49.9]} 17. Rxe2 {[%clk 0:01:23.4]} 17... Bg4 {[%clk 0:02:50.8]} 18. Re3
{[%clk 0:01:07.2]} 18... Nb6 {[%clk 0:02:30.8]} 19. cxd5 {[%clk 0:00:48.3]}
19... exd5 {[%clk 0:02:26.4]} 20. h3 {[%clk 0:00:45.4]} 20... Bxf3 {[%clk
0:02:24]} 21. Rxf3 {[%clk 0:00:47.2]} 21... Qg6 {[%clk 0:02:23.8]} 22. Rxf8+
{[%clk 0:00:40.7]} 22... Rxf8 {[%clk 0:02:24.2]} 23. Bb4 {[%clk 0:00:40.9]}
23... Bxb4 {[%clk 0:02:11.8]} 24. Qxb4 {[%clk 0:00:42.8]} 24... Re8 {[%clk
0:02:12.8]} 25. Re1 {[%clk 0:00:41.6]} 25... Rxe1+ {[%clk 0:02:08.1]} 26. Qxe1
{[%clk 0:00:43.5]} 26... Qf7 {[%clk 0:02:04.8]} 27. b3 {[%clk 0:00:42.2]} 27...
Nc8 {[%clk 0:02:04.2]} 28. Qe5 {[%clk 0:00:39.7]} 28... Qe7 {[%clk 0:01:54.5]}
29. Qb8 {[%clk 0:00:34.3]} 29... Qd7 {[%clk 0:01:55.1]} 30. Nf1 {[%clk
0:00:29.7]} 30... Kh7 {[%clk 0:01:55.4]} 31. Ne3 {[%clk 0:00:30.4]} 31... a6
{[%clk 0:01:55.1]} 32. Qe5 {[%clk 0:00:27.5]} 32... Nd6 {[%clk 0:01:55.1]} 33.
f3 {[%clk 0:00:26.3]} 33... Nb5 {[%clk 0:01:45.9]} 34. Kf2 {[%clk 0:00:25.8]}
34... Nd6 {[%clk 0:01:37.2]} 35. g4 {[%clk 0:00:24.4]} 35... a5 {[%clk
0:01:28.9]} 36. h4 {[%clk 0:00:23.9]} 36... Nb5 {[%clk 0:01:21.1]} 37. h5 {[%clk
0:00:22.2]} 37... a4 {[%clk 0:01:18.7]} 38. bxa4 {[%clk 0:00:21.1]} 38... Nc3
{[%clk 0:01:19.6]} 39. a5 {[%clk 0:00:21.5]} 39... Nxa2 {[%clk 0:01:20.3]} 40.
Nf5 {[%clk 0:00:22.3]} 40... Nb4 {[%clk 0:01:16.4]} 41. Qe2 {[%clk 0:00:18]}
41... Qc7 {[%clk 0:01:09.4]} 42. Kg2 {[%clk 0:00:17.7]} 42... Na6 {[%clk
0:01:01.7]} 43. Qe6 {[%clk 0:00:18.3]} 43... Nb4 {[%clk 0:00:55.5]} 44. Qg6+
{[%clk 0:00:19.1]} 44... Kh8 {[%clk 0:00:56.5]} 45. Qe8+ {[%clk 0:00:19.9]}
45... Kh7 {[%clk 0:00:57.9]} 46. Ne7 {[%clk 0:00:20.7]} 1-0